bitfinex-derivatives/quotes_SOLF0:USTF0_20250228
["timestamp","ask_amount","ask_price","bid_price","bid_amount"]
[1740755636822,0.0447242,145.0,144.92,1.38007176]
[1740755637226,0.0447242,145.0,144.93,6.9029]
[1740755637818,0.0447242,145.0,144.94,6.9027]
[1740755638622,0.0447242,145.0,144.92,1.38007176]
[1740755638823,28.66253877,145.07,144.93,22.79394781]
[1740755639029,28.66253877,145.07,145.01,6.899]
[1740755639619,28.66253877,145.07,145.03,6.8983]
[1740755639818,28.66253877,145.07,144.99,3.7733]
[1740755640031,0.04497014,145.06,145.04,0.04473422]
[1740755640928,0.04497014,145.06,145.04,6.94253422]
[1740755641329,0.04497014,145.06,145.04,6.94263422]
[1740755641621,0.04497014,145.06,145.04,0.04473422]
[1740755641826,0.04497014,145.06,145.05,6.8974]
[1740755642023,0.04497014,145.06,145.04,0.04473422]
[1740755645625,0.04497014,145.06,144.95,239.76]
[1740755645830,3.5125,145.07,144.95,18.96]
[1740755646831,0.04666953,145.02,144.96,15.82334781]
[1740755647130,3.6498,145.1,144.95,20.33978613]
[1740755647330,1.315e-05,145.0,144.95,20.33978613]
[1740755647627,28.66253877,145.11,144.98,13.8015]
[1740755647826,28.66253877,145.11,144.99,10.8136]
[1740755648231,28.66253877,145.11,145.0,31.00225815]
[1740755648432,28.66253877,145.11,145.1,6.8951]
[1740755648833,0.05285351,145.12,145.09,0.0465264]
[1740755649031,5.78233877,145.13,145.07,18.94]
[1740755649332,0.04404709,145.11,145.09,0.04674977]
[1740755649535,4.709e-05,145.11,145.1,6.8951]
[1740755649836,76.43343674,145.14,145.09,0.04674977]
[1740755650030,76.43343674,145.14,145.13,6.8936]
[1740755650223,76.43343674,145.14,145.07,208.26209917]
[1740755650728,76.43343674,145.14,145.13,6.8936]
[1740755651534,55.20843674,145.14,145.13,6.8936]
[1740755651740,55.20843674,145.14,145.13,25.8336]
[1740755651937,44.37653674,145.14,145.13,25.8336]
[1740755652341,31.47342256,145.14,145.13,25.8336]
[1740755652534,0.04934485,145.15,145.14,6.8932]
[1740755653235,0.04934485,145.15,145.14,10.3332]
[1740755653536,4.485e-05,145.15,145.14,10.3332]
[1740755653730,4.485e-05,145.15,145.14,199.65529917]
[1740755653944,20.25622256,145.26,145.14,192.76209917]
[1740755654238,20.25622256,145.26,145.15,1.37788494]
[1740755654434,20.25622256,145.26,145.19,6.8904]
[1740755654635,20.25622256,145.26,145.2,18.92]
[1740755655038,20.25622256,145.26,145.22,0.05273838]
[1740755655239,0.05167019,145.24,145.22,0.05273838]
[1740755659638,3.687,145.33,145.22,0.05273838]
[1740755659842,114.65015511,145.43,145.22,0.05273838]
[1740755660142,6.8804,145.41,145.23,1.37712593]
[1740755660344,3.4495,145.42,145.23,1.37712593]
[1740755660740,3.4495,145.42,145.24,3.5717]
[1740755660945,0.04882334,145.34,145.31,0.05230085]
[1740755661140,3.4495,145.42,145.3,18.9]
[1740755661335,0.04882569,145.34,145.31,0.04749616]
[1740755661542,18.9,145.4,145.25,1.37693631]
[1740755661744,18.9,145.4,145.22,18.9]
[1740755662244,1.17146796,145.39,145.2,18.9]
[1740755662446,6.8841,145.34,145.2,18.9]
[1740755662747,0.04681687,145.31,145.1,220.46]
[1740755663044,18.9,145.33,145.16,18.9]
[1740755663245,18.9,145.33,145.1,220.46]
[1740755663444,18.9,145.33,145.15,18.9]
[1740755663849,6.8861,145.29,145.15,25.7923]
[1740755664047,0.04934997,145.25,145.23,0.05011314]
[1740755664443,18.9,145.33,145.15,22.5366]
[1740755664642,0.0507851,145.25,145.23,0.04485548]
[1740755665043,7.4372,145.32,145.18,6.8913]
[1740755665351,0.04936034,145.26,145.24,0.04834748]
[1740755665544,14.3218,145.32,145.15,26.1052]
[1740755665753,7.4372,145.32,145.15,26.1052]
[1740755665949,7.4372,145.32,145.15,22.5366]
[1740755666152,6.8851,145.31,145.15,22.5366]
[1740755666446,7.4372,145.32,145.15,22.5366]
[1740755666648,6.8865,145.28,145.15,22.5366]
[1740755666846,0.04401574,145.24,145.22,0.04409355]
[1740755667047,0.04401574,145.24,145.15,18.9]
[1740755667451,18.88,145.27,145.15,18.9]
[1740755667759,18.88,145.27,145.14,0.59873493]
[1740755668150,0.04813326,145.22,145.14,0.59873493]
[1740755669850,0.04813326,145.22,145.19,6.8906]
[1740755670243,0.04813326,145.22,145.14,0.59873493]
[1740755670443,0.04813326,145.22,145.2,6.8903]
[1740755670653,0.04813326,145.22,145.14,189.9208341]
[1740755672051,203.7549,145.48,145.15,15.0507333]
[1740755672052,18.88,145.44,145.15,15.0507333]
[1740755672262,7.2543,145.39,145.16,1.2658333]
[1740755672452,7.2543,145.39,145.16,190.58793247]
[1740755672753,7.2543,145.39,145.16,189.32209917]
[1740755672951,6.8828,145.36,145.16,189.32209917]
[1740755673147,0.05294457,145.29,145.26,6.93102873]
[1740755673453,3.4605,145.35,145.2,18.88]
[1740755673653,0.04564015,145.29,145.26,0.04581741]
[1740755673864,3.4605,145.35,145.2,18.88]
[1740755674051,0.04576585,145.29,145.26,0.05176633]
[1740755674247,3.4605,145.35,145.26,0.05176633]
[1740755674461,3.4605,145.35,145.2,18.88]
[1740755674654,0.04778987,145.32,145.29,0.04697078]
[1740755674954,0.05202742,145.32,145.29,0.04988389]
[1740755676153,0.05202742,145.32,145.2,18.88]
[1740755676361,3.4605,145.35,145.26,6.8874]
[1740755676561,3.4605,145.35,145.2,18.88]
[1740755677256,3.4605,145.35,145.26,6.8872]
[1740755677456,0.04910338,145.29,145.2,18.88]
[1740755677661,3.4605,145.35,145.2,18.88]
[1740755677967,3.4605,145.35,145.18,18.86]
[1740755677968,6.884,145.34,145.18,18.86]
[1740755678158,0.05107641,145.29,145.18,18.86]
[1740755678359,3.4605,145.35,145.27,6.887]
[1740755678562,0.04941133,145.25,145.19,7.3828]
[1740755678756,3.4605,145.35,145.19,7.3828]
[1740755679260,3.4605,145.35,145.19,21.1642]
[1740755679659,220.46,145.38,145.2,220.42]
[1740755679858,3.5111,145.37,145.32,6.8843]
[1740755680269,0.04514379,145.36,145.26,18.86]
[1740755680463,3.5111,145.37,145.34,6.8836]
[1740755680670,0.04915582,145.32,145.27,3.6259]
[1740755680859,3.5111,145.37,145.27,3.6259]
[1740755681060,3.5111,145.37,145.33,6.8838]
[1740755681355,3.5111,145.37,145.27,3.6259]
[1740755681564,0.04367005,145.36,145.34,0.05258436]
[1740755681763,0.04367005,145.36,145.27,3.6259]
[1740755681961,0.04367005,145.36,145.34,0.05124504]
[1740755682166,3.5111,145.37,145.27,3.6259]
[1740755682379,0.04694109,145.36,145.34,0.04925947]
[1740755682580,6.484e-05,145.33,145.28,3.5691]
[1740755682767,28.36090677,145.52,145.28,192.89119917]
[1740755682768,6.8778,145.47,145.28,192.89119917]
[1740755682963,10.8738,145.46,145.28,315.89119917]
[1740755683172,28.36090677,145.52,145.29,1.26436088]
[1740755683462,39.23470677,145.52,145.32,13.7684]
[1740755683664,39.23470677,145.52,145.33,18.84]
[1740755683876,9.19e-06,145.43,145.41,0.04677397]
[1740755684061,9.19e-06,145.43,145.42,25.7199]
[1740755684258,28.36090677,145.52,145.42,22.6018]
[1740755684669,28.36090677,145.52,145.43,3.4667]
[1740755685466,0.04354072,145.49,145.46,0.05284076]
[1740755687569,4.072e-05,145.49,145.46,0.05284076]
[1740755687865,4.072e-05,145.49,145.48,6.877]
[1740755688072,4.072e-05,145.49,145.48,25.717]
[1740755688271,7.4438,145.64,145.48,22.28]
[1740755688472,7.4438,145.64,145.48,18.84]
[1740755688882,7.4438,145.64,145.55,6.8733]
[1740755689070,7.4438,145.64,145.48,18.84]
[1740755689477,0.04951913,145.57,145.55,0.04657261]
[1740755689870,7.4438,145.64,145.54,18.82]
[1740755690072,0.04619018,145.57,145.55,0.0447926]
[1740755690267,103.59894936,145.65,145.54,18.82]
[1740755690476,103.59894936,145.65,145.61,6.8707]
[1740755690773,103.59894936,145.65,145.55,0.1751]
[1740755690975,3.4918,145.68,145.54,18.82]
[1740755691176,3.4918,145.68,145.54,18.9951]
[1740755691375,28.36090677,145.74,145.54,0.1751]
[1740755691581,10.6088,145.73,145.6,0.04438932]
[1740755691769,0.04877647,145.65,145.61,18.82]
[1740755691974,10.6088,145.73,145.65,0.04342307]
[1740755692175,10.6088,145.73,145.61,18.82]
[1740755692373,0.05210386,145.7,145.61,18.82]
[1740755692571,28.36090677,145.74,145.68,0.04565673]
[1740755692777,28.36090677,145.74,145.67,18.8]
[1740755693175,10.33530677,145.74,145.67,22.24]
[1740755693386,6.77e-06,145.74,145.69,0.04675285]
[1740755693607,6.77e-06,145.74,145.7,220.06]
[1740755693781,63.11654936,145.75,145.73,6.8652]
[1740755693971,3.82086528,145.75,145.74,18.8]
[1740755694181,70.00352039,145.76,145.74,18.8]
[1740755694481,42.06122039,145.76,145.75,6.8643]
[1740755694687,42.11031811,145.76,145.75,6.8643]
[1740755694982,42.11031811,145.76,145.75,10.3043]
[1740755695372,272.62538777,145.82,145.75,3.42]
[1740755695579,3.5388,145.95,145.74,18.8]
[1740755695796,6.8593,145.86,145.74,18.8]
[1740755695979,238.68,145.94,145.74,18.8]
[1740755696189,6.8593,145.86,145.74,18.8]
[1740755696375,6.90866422,145.86,145.71,18.78]
[1740755696587,0.04422275,145.81,145.79,0.04582519]
[1740755696784,0.04422275,145.81,145.71,18.78]
[1740755696983,6.95288697,145.81,145.71,18.78]
[1740755697182,6.90866422,145.81,145.71,18.78]
[1740755697780,6.90866422,145.81,145.8,200.63810531]
[1740755698077,219.9,145.84,145.8,170.89324109]
[1740755698302,0.04661554,145.82,145.8,170.89324109]
[1740755700479,6.8615,145.81,145.79,0.04851509]
[1740755700677,0.04661554,145.82,145.79,0.04851509]
[1740755700894,0.04661554,145.82,145.73,18.78]
[1740755701082,7.4484,145.85,145.73,18.78]
[1740755701480,7.4484,145.85,145.67,7.2548]
[1740755701679,7.4484,145.85,145.74,6.03577284]
[1740755701876,7.4484,145.85,145.74,0.32577284]
[1740755702090,6.8643,145.75,145.74,0.32577284]
[1740755702284,238.52,145.8,145.63,9.6443441]
[1740755702591,18.76,145.79,145.63,9.6443441]
[1740755703180,219.76,145.8,145.63,9.6443441]
[1740755703383,18.76,145.79,145.59,3.7437]
[1740755703589,6.8662,145.71,145.7,0.04329063]
[1740755703986,18.76,145.79,145.59,3.7437]
[1740755704185,0.04531828,145.72,145.69,0.04835733]
[1740755704378,18.76,145.79,145.69,0.04835733]
[1740755704583,0.04945956,145.72,145.69,0.04990533]
[1740755704781,219.76,145.8,145.66,25.6285]
[1740755705087,0.04853299,145.72,145.69,0.05102049]
[1740755705281,0.04853299,145.72,145.66,18.76]
[1740755705483,219.76,145.8,145.66,18.76]
[1740755705685,0.04433351,145.72,145.69,0.05240181]
[1740755705987,219.76,145.8,145.66,18.76]
[1740755706283,6.867,145.7,145.69,0.04596496]
[1740755706686,3.8073,145.71,145.59,18.76]
[1740755706984,3.8073,145.71,145.64,0.04695009]
[1740755707179,0.04573081,145.66,145.64,0.04695009]
[1740755707382,18.76,145.69,145.53,18.76]
[1740755707784,18.76,145.69,145.48,19.33048008]
[1740755707986,18.76,145.69,145.43,28.31451346]
[1740755708183,20.74,145.69,145.43,28.31451346]
[1740755708488,0.04391087,145.57,145.55,0.04547521]
[1740755708688,0.04391087,145.57,145.43,18.76]
[1740755708889,227.0773,145.59,145.43,18.76]
[1740755709383,233.9492,145.59,145.43,18.76]
[1740755709585,227.0773,145.59,145.43,18.76]
[1740755709787,227.0773,145.59,145.42,82.52146104]
[1740755709990,0.04427016,145.52,145.5,0.05076922]
[1740755710382,227.0773,145.59,145.42,82.52146104]
[1740755710584,0.04596921,145.52,145.5,0.05059133]
[1740755710779,0.04596921,145.52,145.42,82.52146104]
[1740755711087,227.0773,145.59,145.42,82.52146104]
[1740755711289,0.04958002,145.48,145.46,0.04345142]
[1740755711585,227.0773,145.59,145.47,18.76]
[1740755711793,0.04738512,145.48,145.46,0.04369834]
[1740755711977,18.76,145.58,145.43,25.7402]
[1740755712177,18.76,145.58,145.46,0.04673368]
[1740755712388,0.04476744,145.52,145.44,1.37513751]
[1740755712584,0.04476744,145.52,145.51,0.04926119]
[1740755712786,0.04476744,145.52,145.44,1.37513751]
[1740755712983,6.8758,145.51,145.38,7.1616]
[1740755713188,18.76,145.52,145.38,7.1616]
[1740755713394,3.5752,145.5,145.38,3.6663]
[1740755713692,219.9,145.49,145.32,55.81571435]
[1740755713984,219.9,145.49,145.37,9.55451346]
[1740755714184,0.05230604,145.42,145.39,0.04501871]
[1740755714580,3.7765,145.48,145.37,9.55451346]
[1740755714785,0.04399142,145.42,145.39,0.04648187]
[1740755715190,3.7765,145.48,145.37,9.55451346]
[1740755715392,0.04909948,145.42,145.39,0.04601494]
[1740755715787,3.7765,145.48,145.37,9.55451346]
[1740755716087,0.05046728,145.42,145.39,0.0439444]
[1740755716488,219.9,145.49,145.4,18.76]
[1740755716688,3.6333,145.51,145.4,18.76]
[1740755716904,3.654,145.56,145.41,1.37542122]
[1740755717219,219.98,145.57,145.41,194.45582039]
[1740755717395,7.2799,145.61,145.42,5.89362881]
[1740755717600,7.2799,145.61,145.43,219.98]
[1740755717895,0.05156646,145.53,145.51,0.04445678]
[1740755718394,7.2799,145.61,145.49,18.76]
[1740755718597,0.04503572,145.53,145.51,0.04697403]
[1740755718894,219.98,145.52,145.46,4.81291435]
[1740755719097,0.05140457,145.53,145.46,4.81291435]
[1740755719705,227.79140457,145.59,145.46,4.81291435]
[1740755720499,6.873,145.57,145.46,11.69051435]
[1740755720799,227.79140457,145.59,145.46,4.81291435]
[1740755720999,0.04543418,145.53,145.5,0.04988052]
[1740755721306,209.03140457,145.59,145.46,4.81291435]
[1740755721499,0.05265681,145.53,145.5,0.05119699]
[1740755722593,0.04401413,145.53,145.5,0.05128627]
[1740755724792,0.04401413,145.53,145.5,6.92698627]
[1740755724996,0.04401413,145.53,145.5,0.05128627]
[1740755725396,3.48401413,145.53,145.45,9.53862474]
[1740755725594,3.5819,145.52,145.45,9.53862474]
[1740755725800,6.8756,145.51,145.45,9.53862474]
[1740755725996,18.76,145.5,145.36,7.1692]
[1740755726294,220.0,145.49,145.35,73.33653573]
[1740755726503,0.04489101,145.44,145.42,9.491e-05]
[1740755726803,6.8808,145.4,145.39,1e-08]
[1740755726993,149.0,145.39,145.32,183.828829]
[1740755727195,369.0,145.38,145.34,60.8140431]
[1740755727395,6.8832,145.35,145.34,27.0910431]
[1740755727692,369.0,145.38,145.34,14.9642431]
[1740755727900,0.04542074,145.36,145.34,14.9642431]
[1740755728101,0.04542074,145.36,145.27,74.67001166]
[1740755728492,369.0,145.38,145.27,74.67001166]
[1740755728696,0.0444067,145.33,145.27,74.67001166]
[1740755729595,6.8847,145.32,145.27,74.67001166]
[1740755729800,0.0444067,145.33,145.27,74.67001166]
[1740755730797,6.8865,145.28,145.27,74.67001166]
[1740755730997,245.7665,145.28,145.27,24.31471166]
[1740755731398,242.32,145.28,145.27,24.31471166]
[1740755731599,238.88,145.28,145.18,3.7239]
[1740755731998,0.04979831,145.24,145.18,3.7239]
[1740755732603,48.61959808,145.44,145.19,20.13750533]
[1740755732801,48.61959808,145.44,145.2,1.37741046]
[1740755733402,18.76,145.43,145.2,1.37741046]
[1740755733804,0.0523209,145.33,145.3,0.05047474]
[1740755734199,18.76,145.43,145.29,18.76]
[1740755734502,220.22,145.46,145.3,7.158]
[1740755735003,220.22,145.46,145.31,1.37636776]
[1740755735198,220.22,145.46,145.31,190.69846693]
[1740755735401,220.24,145.53,145.31,1.37636776]
[1740755735705,220.24,145.53,145.4,6.8808]
[1740755735907,0.04617741,145.43,145.37,18.76]
[1740755736104,220.24,145.53,145.37,18.76]
[1740755736501,0.05112349,145.41,145.39,0.05249565]
[1740755736702,6.8761,145.51,145.4,6.8804]
[1740755736903,6.8761,145.51,145.37,18.76]
[1740755737204,6.8757,145.51,145.4,6.8804]
[1740755737595,239.0,145.53,145.37,18.76]
[1740755737798,0.05047383,145.47,145.44,0.05282233]
[1740755738000,0.05047383,145.47,145.37,18.76]
[1740755738197,239.0,145.53,145.37,18.76]
[1740755738401,0.04603648,145.47,145.44,0.05193991]
[1740755738702,239.0,145.53,145.37,18.76]
[1740755738903,0.05178211,145.47,145.44,0.0510215]
[1740755739206,239.0,145.53,145.37,18.76]
[1740755739504,0.04698449,145.47,145.44,0.05276795]
[1740755739906,239.0,145.53,145.37,18.76]
[1740755740107,0.0490913,145.47,145.44,0.05209771]
[1740755740297,18.8090913,145.47,145.44,0.05209771]
[1740755740498,18.8090913,145.47,145.32,3.4962]
[1740755740499,18.76,145.47,145.32,22.2562]
[1740755740698,22.24951241,145.47,145.44,9.781e-05]
[1740755741009,18.76,145.47,145.31,1.37636776]
[1740755741407,18.76,145.47,145.3,7.158]
[1740755741709,18.76,145.47,145.3,14.0425]
[1740755741904,0.05156145,145.4,145.37,0.04912423]
[1740755742299,18.76,145.41,145.3,7.158]
[1740755742607,0.05057205,145.4,145.37,0.04335763]
[1740755742805,220.18,145.42,145.31,18.76]
[1740755743001,0.04426396,145.4,145.37,0.04816295]
[1740755743503,13.7411,145.61,145.37,0.04816295]
[1740755743504,238.94,145.56,145.38,18.76]
[1740755744007,248.22799106,145.56,145.38,18.76]
[1740755744702,248.22799106,145.56,145.46,0.05159055]
[1740755744703,0.04575071,145.48,145.46,0.05159055]
[1740755744908,18.76,145.48,145.34,6.8829]
[1740755745203,18.81084461,145.48,145.46,0.04591039]
[1740755745410,6.8784,145.44,145.36,6.882]
[1740755745610,220.18,145.45,145.3,7.158]
[1740755745806,220.18,145.45,145.39,0.04947099]
[1740755746012,0.04725491,145.39,145.3,7.158]
[1740755746208,220.18,145.45,145.3,7.158]
[1740755746408,0.04363058,145.36,145.33,0.04645648]
[1740755746716,18.76,145.47,145.32,18.76]
[1740755747106,18.76,145.47,145.26,78.66050141]
[1740755747409,238.92,145.52,145.27,8.78704674]
[1740755747611,238.92,145.52,145.27,228.96704674]
[1740755747812,0.04622364,145.41,145.38,0.05120061]
[1740755748109,238.92,145.52,145.27,228.96704674]
[1740755748110,238.92,145.52,145.37,6.8815]
[1740755748312,0.04383251,145.41,145.38,0.05048254]
[1740755748512,18.74,145.46,145.34,18.74]
[1740755748706,4.78852713,145.46,145.38,0.05032383]
[1740755749902,0.04613207,145.43,145.38,0.05032383]
[1740755750318,0.04613207,145.43,145.38,6.93132383]
[1740755750506,0.04613207,145.43,145.38,0.05032383]
[1740755750907,0.04613207,145.43,145.41,6.8793]
[1740755751203,0.04613207,145.43,145.38,7.35922383]
[1740755751513,220.18,145.57,145.39,1.37561042]
[1740755751707,220.18,145.57,145.39,190.69770959]
[1740755751908,9.28799106,145.62,145.53,6.8739]
[1740755752110,9.28799106,145.62,145.5,18.74]
[1740755752303,30.02799106,145.62,145.39,1.37561042]
[1740755752506,0.04527453,145.57,145.55,0.05028174]
[1740755752710,18.74,145.56,145.39,1.37561042]
[1740755753009,25.6126,145.56,145.55,0.04755045]
[1740755753211,18.74,145.56,145.39,1.37561042]
[1740755753414,18.8983,145.56,145.39,1.37561042]
[1740755753614,18.8983,145.56,145.47,6.8766]
[1740755753915,18.74,145.56,145.39,190.69770959]
[1740755754110,0.2045,145.63,145.39,190.69770959]
[1740755754412,0.2045,145.63,145.46,0.04632752]
[1740755754616,0.2045,145.63,145.47,18.74]
[1740755754813,0.2045,145.63,145.48,7.1363]
[1740755755716,0.05237472,145.57,145.54,0.0474261]
[1740755755916,6.8731,145.55,145.54,0.0474261]
[1740755756218,6.8731,145.55,145.53,0.04513944]
[1740755756516,18.78450753,145.56,145.43,7.1363]
[1740755756720,18.74,145.56,145.53,0.04588419]
[1740755756913,0.04751459,145.51,145.43,7.1363]
[1740755757114,18.74,145.56,145.46,0.04681786]
[1740755757313,0.04852903,145.48,145.43,7.1363]
[1740755757509,18.74,145.56,145.43,7.1363]
[1740755757510,220.1,145.54,145.5,0.04864925]
[1740755757712,220.1,145.54,145.39,1.37561042]
[1740755757915,0.04734964,145.53,145.36,10.9094]
[1740755758217,220.1,145.54,145.36,10.9094]
[1740755758915,220.1,145.54,145.44,0.04607062]
[1740755758916,0.04574165,145.46,145.44,0.04607062]
[1740755759111,18.72,145.46,145.36,10.9094]
[1740755759418,18.76689192,145.46,145.44,0.05089476]
[1740755759610,18.72,145.46,145.36,10.9094]
[1740755759810,18.72,145.46,145.39,6.8806]
[1740755760011,0.04558368,145.42,145.4,0.04663183]
[1740755760623,18.72,145.51,145.4,0.04663183]
[1740755760821,6.8744,145.53,145.44,6.8779]
[1740755761017,238.82,145.54,145.39,18.72]
[1740755761217,18.72,145.6,145.39,18.72]
[1740755761523,0.288,145.65,145.4,1.37551581]
[1740755761723,0.288,145.65,145.4,313.69761498]
[1740755761918,7.72e-06,145.54,145.53,6.874]
[1740755762116,37.19297072,145.67,145.53,208.04209917]
[1740755762320,37.19297072,145.67,145.54,1.37419266]
[1740755763024,37.45167072,145.69,145.54,1.37419266]
[1740755763221,0.05273806,145.62,145.59,0.04636387]
[1740755763721,0.0495384,145.62,145.54,1.37419266]
[1740755763925,0.0495384,145.62,145.59,0.05250314]
[1740755764123,6.8716,145.59,145.54,1.37419266]
[1740755764327,0.0495384,145.62,145.54,1.37419266]
[1740755764519,18.72,145.64,145.54,1.37419266]
[1740755764922,18.72,145.64,145.54,1.30979266]
[1740755765424,0.04612839,145.6,145.58,9.72e-06]
[1740755765624,6.8731,145.55,145.54,2.38e-06]
[1740755765832,238.76,145.55,145.42,18.72]
[1740755766027,238.76,145.55,145.37,18.72]
[1740755766530,220.04,145.55,145.38,1.37570504]
[1740755766829,0.04340398,145.47,145.45,0.04737987]
[1740755767025,220.04,145.55,145.45,0.04737987]
[1740755767226,220.04,145.55,145.43,18.72]
[1740755767420,18.72,145.58,145.44,3.478]
[1740755767624,220.04,145.62,145.44,3.478]
[1740755767825,220.04,145.62,145.45,1.37504297]
[1740755768227,0.04637172,145.55,145.52,0.04513788]
[1740755768427,220.04,145.62,145.5,18.72]
[1740755768828,220.04,145.73,145.51,1.37447598]
[1740755769024,220.04,145.73,145.66,6.8677]
[1740755769225,220.04,145.73,145.59,18.72]
[1740755769723,37.19297072,145.68,145.67,6.8674]
[1740755769919,20.01167072,145.68,145.67,6.8674]
[1740755770219,0.05281435,145.67,145.59,208.04209917]
[1740755770419,65.89794982,145.69,145.66,0.04837275]
[1740755770625,25.13444982,145.69,145.68,6.8669]
[1740755770825,58.51371798,145.71,145.67,18.7]
[1740755771021,29.07691798,145.71,145.67,22.14]
[1740755771226,5.03791798,145.71,145.7,6.866]
[1740755771418,5.03791798,145.71,145.67,22.14]
[1740755771629,179.87807077,145.73,145.69,0.05065794]
[1740755771824,148.88067077,145.73,145.72,6.865]
[1740755772024,148.88067077,145.73,145.69,3.49065794]
[1740755772428,148.88067077,145.73,145.69,0.05065794]
[1740755772927,0.04906887,145.72,145.69,0.05065794]
[1740755773327,6.866,145.7,145.69,0.05065794]
[1740755773528,13.82041324,145.72,145.63,18.7]
[1740755773729,3.5181,145.71,145.59,18.7]
[1740755773929,7.005,145.71,145.51,29.6501703]
[1740755774129,7.005,145.71,145.51,48.3501703]
[1740755774130,20.77634437,145.71,145.51,48.3501703]
[1740755774728,0.04758847,145.62,145.51,1.37447598]
[1740755775235,17.31454534,145.62,145.51,1.37447598]
[1740755776028,0.05116028,145.58,145.55,0.0449532]
[1740755777338,0.05116028,145.58,145.56,18.68]
[1740755778139,6.028e-05,145.58,145.56,18.68]
[1740755778740,6.028e-05,145.58,145.55,0.0449532]
[1740755779340,190.0,146.03,145.62,20.76]
[1740755779537,140.88316641,146.08,145.61,13.7405]
[1740755779538,7.0872,145.95,145.64,20.76]
[1740755779842,3.815,145.94,145.84,6.8593]
[1740755780042,3.815,145.94,145.85,18.68]
[1740755780240,17.58624534,145.94,145.87,6.858]
[1740755780446,17.58624534,145.94,145.85,18.68]
[1740755780638,0.04462636,145.91,145.88,0.04871361]
[1740755781644,0.04462636,145.91,145.9,6.8566]
[1740755782543,0.04462636,145.91,145.88,0.04871361]
[1740755783143,2.636e-05,145.91,145.88,3.46871361]
[1740755783344,2.636e-05,145.91,145.9,6.8566]
[1740755783847,2.636e-05,145.91,145.88,0.04871361]
[1740755784040,2.636e-05,145.91,145.9,6.8566]
[1740755785144,2.636e-05,145.91,145.9,10.2766]
[1740755785343,2.636e-05,145.91,145.9,6.8566]
[1740755785545,2.636e-05,145.91,145.9,10.2766]
[1740755786146,2.636e-05,145.91,145.9,6.8566]
[1740755787543,3.6732,146.02,145.88,0.04871361]
[1740755787741,17.44444534,146.02,145.85,213.68]
[1740755787943,17.44444534,146.02,145.86,1.37117784]
[1740755788346,17.44444534,146.02,145.89,6.857]
[1740755788837,17.44444534,146.02,145.94,0.04559311]
[1740755788838,0.04328996,145.97,145.94,0.04559311]
[1740755789038,0.04328996,145.97,145.86,20.03117784]
[1740755789247,13.8145353,145.97,145.86,20.03117784]
[1740755789548,13.77124534,145.97,145.9,6.8565]
[1740755789748,13.77124534,145.97,145.86,20.03117784]
[1740755789937,13.77124534,145.97,145.86,1.37117784]
[1740755790250,0.0500333,145.93,145.9,0.04717755]
[1740755790450,0.0500333,145.93,145.86,1.37117784]
[1740755790642,13.82127864,145.93,145.83,25.4994]
[1740755790844,6.9687,145.92,145.83,25.4994]
[1740755791145,6.9687,145.92,145.84,6.859]
[1740755791346,13.77124534,145.93,145.84,6.859]
[1740755791347,5.4298232,145.93,145.84,6.859]
[1740755791546,0.04393407,145.89,145.87,0.04553975]
[1740755791747,5.47375727,145.89,145.84,6.8592]
[1740755791949,0.04393407,145.89,145.82,18.64]
[1740755792144,0.04393407,145.89,145.83,1.37145991]
[1740755792344,0.04393407,145.89,145.88,6.8575]
[1740755792545,3.407e-05,145.89,145.88,25.4975]
[1740755792744,3.407e-05,145.89,145.88,28.9175]
[1740755793249,3.407e-05,145.89,145.88,25.4975]
[1740755794548,219.52,146.02,145.88,18.64]
[1740755794843,6.8528,145.98,145.88,25.4975]
[1740755795049,224.9498232,146.02,145.88,25.4975]
[1740755795251,224.9498232,146.02,145.9,6.8565]
[1740755795547,224.9498232,146.02,145.88,18.64]
[1740755795742,0.04727126,145.97,145.95,0.04991138]
[1740755795945,224.9498232,146.02,145.95,0.04991138]
[1740755796147,0.05169089,145.97,145.95,0.04991138]
[1740755796350,224.9498232,146.02,145.95,0.04991138]
[1740755796541,0.05029417,145.97,145.88,18.64]